Workbook

Sheet 説明
B2: ↓ご提出ください
B3: 1.算定基礎賃金等の報告 ”２枚（事務組合控え、事業主控え）
B7: ご提出先
B8: 中津商工会議所
B9: 〒871-8510
B10: 大分県中津市殿町1383-1
B13: お問合せ先
B14: 労働保険事務組合中津商工会議所
B15: 担当： 相良
B16: TEL：0979-22-2250
B17: メールアドレス：sagara@nakatsu-cci.org

Sheet 1.算定基礎賃金等の報告
A1: 組様式第４号 | S1: 労働保険料算定基礎賃金等の報告
A3: ① | B3: 府県 | D3: 所掌 | E3: 管轄 | G3: 基 幹 番 号 | M3: 枝番号
A4: 労働保険 | P4: ③ | Q4: 事業の名称 | AE4: ＴＥＬ | AL4: ⑦事業の概要（具体的に記入して下さい。） | AT4: ⑨特掲事業
A5: 番 号
P6: ④ | Q6: 事業の所在地 | AT6: ⑩令和４年度概算の延納
A7: ② | G7: - | N7: -
A8: 雇用保険 | P8: ⑤ | Q8: 事業主の氏名 | AA8: ⑥作成者氏名 | AN8: ※⑧業種 | AT8: （分割納付（３回）） | AV8: （一括納付（１回））
A9: 事業所番号
A11: ⑪ 令和 ３ 年 度 確 定 賃 金 総 額
A12: 区 分 | B12: 労 災 保 険 対 象 労 働 者 数 及 び 賃 金 | Z12: 雇 用 保 険 対 象 被 保 険 者 数 及 び 賃 金
B13: （１） | H13: （２） | N13: （３） | T13: （４） | Z13: （５） | AF13: （６） | AL13: （７）
B14: 常 用 労 働 者 | H14: 役員で労働者扱いの者 | N14: 臨 時 労 働 者 | T14: 合 計 | Z14: 被 保 険 者 | AF14: 役員で被保険者扱いの者 | AL14: 合 計
I15: 業務執行権を有する者の指示を受け労働に従事し、賃金を得ている者等 | O15: （パートタイマー、アルバイト等） | AA15: 日雇労働被保険者に支払った賃金を含む。なお、パートタイマー、アルバイト等雇用保険の被保険者とならない者を除く | AG15: 給与支払等の面からみて労働者的性格の強い者
U16: （（１）＋（２）＋（３）） | AM16: （（５）＋（６））
A18: 月別内訳
C19: 人 | G19: 円 | I19: 人 | M19: 円 | O19: 人 | S19: 円 | U19: 人 | Y19: 円 | AA19: 人 | AE19: 円 | AG19: 人 | AK19: 円 | AM19: 人 | AQ19: 円
A20: 令和３年４月 | T20: =IF(B20+H20+N20=0,"",B20+H20+N20) ->  | V20: =IF(D20+J20+P20=0,"",D20+J20+P20) ->  | AL20: =IF(Z20+AF20=0,"",Z20+AF20) ->  | AN20: =IF(AB20+AH20=0,"",AB20+AH20) -> 
A21: ５月 | T21: =IF(B21+H21+N21=0,"",B21+H21+N21) ->  | V21: =IF(D21+J21+P21=0,"",D21+J21+P21) -> 
A22: ６月
A23: ７月
A24: ８月
A25: ９月
A26: １０月
A27: １１月
A28: １２月
A29: 令和４年１月
A30: ２月
A31: ３月
A32: 賞与 月
A33: 賞与 月
A34: 賞与 月 | AL34: =IF(Z34+AF34=0,"",Z34+AF34) ->  | AN34: =IF(AB34+AH34=0,"",AB34+AH34) -> 
A35: 合 計 | D35: =IF(SUM(D20:G34)=0,"",SUM(D20:G34)) ->  | J35: =IF(SUM(J20:M34)=0,"",SUM(J20:M34)) ->  | P35: =IF(SUM(P20:S34)=0,"",SUM(P20:S34)) ->  | T35: １ ヶ 月 平均使用 労働者数 | V35: ａ | Y35: 円 | AB35: =IF(SUM(AB20:AE34)=0,"",SUM(AB20:AE34)) ->  | AH35: =IF(SUM(AH20:AK34)=0,"",SUM(AH20:AK34)) ->  | AL35: １ヶ月平均被保険者数 | AN35: ｃ
V36: =IF(SUM(V20:Y34)=0,"",SUM(V20:Y34)) ->  | AN36: =IF(SUM(AN20:AQ34)=0,"",SUM(AN20:AQ34)) -> 
V37: ｂ | Y37: 千円 | AM37: 人 | AN37: ｄ | AQ37: 千円
U38: 人 | V38: =IF(INDIRECT("V36")="","",ROUNDDOWN(V36/1000,0)) ->  | AL38: =IF(SUM(AL20:AM31)=0,"",AVERAGE(AL20:AM31)) ->  | AN38: =IF(INDIRECT("AN36")="","",ROUNDDOWN(AN36/1000,0)) -> 
T39: =IF(SUM(T20:U31)=0,"",SUM(T20:U31)/12) ->  | V39: ｂ＋ｈ | Y39: 千円 | AL39: ｇ（ｄ－ｆ） | AW39: 千円
V40: =IF(AND(NOT(V38=0),E52=""),V38,IF(AND(NOT(E52=0),V38=""),E52,IF(ISERROR(V38+E52=0),"",SUM(V38,E52)))) ->  | AM40: =AN38 -> 
A41: ⑫ 令和 ３ 年 度 確 定 | K41: 特別加入者 | O41: ⑫ 令和 ４ 年 度 概 算 | Z41: ⑭ 令和 ４ 年 度 賃金総額の見込額
A42: 承認された給付基礎日額 | E42: 保険料算定基礎額 | K42: 氏 名 | O42: 希望する給付基礎日額 | T42: 保険料算定基礎額 | Z42: 区 分 | AE42: 労災保険 | AI42: 雇用保険
D43: 円 | J43: 円 | S43: 円 | Y43: 円 | Z43: イ | AA43: 常 時 使 用 | AH43: 人
E44: =IF(A44=0,"",A44*365) ->  | O44: =IF(A44="","",A44) ->  | T44: =IF(O44="","",O44*365) ->  | AA44: 労 働 者 数 | AE44: =T39 -> 
D45: 円 | J45: 円 | S45: 円 | Y45: 円 | Z45: ロ | AA45: 雇 用 保 険 | AL45: 人
E46: =IF(A46=0,"",A46*365) ->  | O46: =IF(A46="","",A46) ->  | T46: =IF(O46="","",O46*365) ->  | AA46: 被保険者数 | AI46: =AL38 -> 
D47: 円 | J47: 円 | S47: 円 | Y47: 円 | Z47: ハ | AA47: 支払賃金総額 | AH47: 円 | AL47: 円
E48: =IF(A48=0,"",A48*365) ->  | O48: =IF(A48="","",A48) ->  | T48: =IF(O48="","",O48*365) ->  | AA48: の 見 込 額 | AE48: =IF(SUM(V20:Y31)=0,"",SUM(V20:Y31)) ->  | AI48: =IF(SUM(AN20:AQ31)=0,"",SUM(AN20:AQ31)) -> 
D49: 円 | J49: 円 | S49: 円 | Y49: 円 | Z49: ニ | AA49: 賞与等臨時支 | AH49: 円 | AL49: 円
E50: =IF(A50=0,"",A50*365) ->  | O50: =IF(A50="","",A50) ->  | T50: =IF(O50="","",O50*365) ->  | AA50: 払賃金の見込額 | AE50: =IF(SUM(V32:Y34)=0,"",SUM(V32:Y34)) ->  | AI50: =IF(SUM(AN32:AQ34)=0,"",SUM(AN32:AQ34)) -> 
E51: ｈ | J51: 千円 | K51: 合 計 | O51: ｉ＋ｊ | S51: 千円 | T51: ｉ | Y51: 千円 | Z51: ホ | AA51: 合 計 | AE51: ｊ（ハ＋ニ） | AH51: 千円 | AI51: ｋ（ハ＋ニ） | AL51: 千円
E52: =IF(SUM(E44:J50)=0,"",SUM(E44:J50)/1000) ->  | O52: =IF(ISERROR(T52+AE52),"",T52+AE52) ->  | T52: =IF(SUM(T44:Y50)=0,"",SUM(T44:Y50)/1000) ->  | AE52: =IF(AND(NOT(AE48=0),AE50=0),ROUNDDOWN(AE48/1000,0),IF(AND(NOT(AE50=0),AE48=0),ROUNDDOWN(AE50/1000,0),IF(ISERROR(AE48+AE50=0),"",ROUNDDOWN((AE48+AE50)/1000,0)))) ->  | AI52: =IF(AND(NOT(AI48=0),AI50=0),ROUNDDOWN(AI48/1000,0),IF(AND(NOT(AI50=0),AI48=0),ROUNDDOWN(AI50/1000,0),IF(ISERROR(AI48+AI50=0),"",ROUNDDOWN((AI48+AI50)/1000,0)))) -> 

Sheet 記載例
A1: 組様式第４号 | S1: 労働保険料算定基礎賃金等の報告
A3: ① | B3: 府県 | D3: 所掌 | E3: 管轄 | G3: 基 幹 番 号 | M3: 枝番号 | U3: ｶｲｷﾞｼｮｼｮｳｶｲ
A4: 労働保険 | B4: 4 | C4: 4 | D4: 3 | E4: 0 | F4: 3 | G4: 9 | H4: 3 | I4: 4 | J4: 0 | K4: 4 | L4: * | M4: 9 | N4: 9 | O4: 9 | P4: ③ | Q4: 事業の名称 | U4: 会議所商会 | AE4: ＴＥＬ | AG4: 0979-22-**** | AL4: ⑦事業の概要（具体的に記入して下さい。） | AT4: ⑨特掲事業
A5: 番 号 | U5: ﾅｶﾂｼﾄﾉﾏﾁ | AL5: 小売店
P6: ④ | Q6: 事業の所在地 | U6: 大分県中津市殿町13**-1 | AT6: ⑩令和４年度概算の延納
A7: ② | C7: 4 | D7: 4 | E7: 0 | F7: 3 | G7: - | H7: * | I7: 1 | J7: 2 | K7: 3 | L7: 4 | M7: 5 | N7: - | O7: * | U7: ｶｲｷﾞｼｮ ﾀﾛｳ
A8: 雇用保険 | P8: ⑤ | Q8: 事業主の氏名 | U8: 会議所 太郎 | AA8: ⑥作成者氏名 | AE8: 中津 花子 | AN8: ※⑧業種 | AT8: （分割納付（３回）） | AV8: （一括納付（１回））
A9: 事業所番号
A11: ⑪ 令和 ３ 年 度 確 定 賃 金 総 額
A12: 区 分 | B12: 労 災 保 険 対 象 労 働 者 数 及 び 賃 金 | Z12: 雇 用 保 険 対 象 被 保 険 者 数 及 び 賃 金
B13: （１） | H13: （２） | N13: （３） | T13: （４） | Z13: （５） | AF13: （６） | AL13: （７）
B14: 常 用 労 働 者 | H14: 役員で労働者扱いの者 | N14: 臨 時 労 働 者 | T14: 合 計 | Z14: 被 保 険 者 | AF14: 役員で被保険者扱いの者 | AL14: 合 計
I15: 業務執行権を有する者の指示を受け労働に従事し、賃金を得ている者等 | O15: （パートタイマー、アルバイト等） | AA15: 日雇労働被保険者に支払った賃金を含む。なお、パートタイマー、アルバイト等雇用保険の被保険者とならない者を除く | AG15: 給与支払等の面からみて労働者的性格の強い者
U16: （（１）＋（２）＋（３）） | AM16: （（５）＋（６））
A18: 月別内訳
C19: 人 | G19: 円 | I19: 人 | M19: 円 | O19: 人 | S19: 円 | U19: 人 | Y19: 円 | AA19: 人 | AE19: 円 | AG19: 人 | AK19: 円 | AM19: 人 | AQ19: 円
A20: 令和３年４月 | B20: 3 | D20: 600000 | T20: =IF(B20+H20+N20=0,"",B20+H20+N20) -> 3 | V20: =IF(D20+J20+P20=0,"",D20+J20+P20) -> 600000 | Z20: 3 | AB20: 600000 | AL20: =IF(Z20+AF20=0,"",Z20+AF20) -> 3 | AN20: =IF(AB20+AH20=0,"",AB20+AH20) -> 600000
A21: ５月 | B21: 3 | D21: 600000 | T21: =IF(B21+H21+N21=0,"",B21+H21+N21) -> 3 | V21: =IF(D21+J21+P21=0,"",D21+J21+P21) -> 600000 | Z21: 3 | AB21: 600000 | AL21: 3 | AN21: 600000
A22: ６月 | B22: 3 | D22: 600000 | T22: 3 | V22: 600000 | Z22: 3 | AB22: 600000 | AL22: 3 | AN22: 600000
A23: ７月 | B23: 3 | D23: 600000 | T23: 3 | V23: 600000 | Z23: 3 | AB23: 600000 | AL23: 3 | AN23: 600000
A24: ８月 | B24: 3 | D24: 600000 | T24: 3 | V24: 600000 | Z24: 3 | AB24: 600000 | AL24: 3 | AN24: 600000
A25: ９月 | B25: 4 | D25: 750000 | T25: 4 | V25: 750000 | Z25: 4 | AB25: 750000 | AL25: 4 | AN25: 750000
A26: １０月 | B26: 3 | D26: 550000 | T26: 3 | V26: 550000 | Z26: 3 | AB26: 550000 | AL26: 3 | AN26: 550000
A27: １１月 | B27: 3 | D27: 550000 | T27: 3 | V27: 550000 | Z27: 3 | AB27: 550000 | AL27: 3 | AN27: 550000
A28: １２月 | B28: 3 | D28: 550000 | T28: 3 | V28: 550000 | Z28: 3 | AB28: 550000 | AL28: 3 | AN28: 550000
A29: 令和４年１月 | B29: 2 | D29: 350000 | T29: 2 | V29: 350000 | Z29: 2 | AB29: 350000 | AL29: 2 | AN29: 350000
A30: ２月 | B30: 2 | D30: 350000 | N30: 1 | P30: 100000 | T30: 3 | V30: 450000 | Z30: 2 | AB30: 350000 | AL30: 2 | AN30: 350000
A31: ３月 | B31: 2 | D31: 350000 | N31: 1 | P31: 100000 | T31: 3 | V31: 450000 | Z31: 2 | AB31: 350000 | AL31: 2 | AN31: 350000
A32: 賞与 6月 | B32: 3 | D32: 300000 | T32: 3 | V32: 300000 | Z32: 3 | AB32: 300000 | AL32: 3 | AN32: 300000
A33: 賞与 12月 | B33: 3 | D33: 300000 | T33: 3 | V33: 300000 | Z33: 3 | AB33: 300000 | AL33: 3 | AN33: 300000
A34: 賞与 月 | AL34: =IF(Z34+AF34=0,"",Z34+AF34) ->  | AN34: =IF(AB34+AH34=0,"",AB34+AH34) -> 
A35: 合 計 | D35: =IF(SUM(D20:G34)=0,"",SUM(D20:G34)) -> 7050000 | J35: =IF(SUM(J20:M34)=0,"",SUM(J20:M34)) ->  | P35: =IF(SUM(P20:S34)=0,"",SUM(P20:S34)) -> 200000 | T35: １ ヶ 月 平均使用 労働者数 | V35: ａ | Y35: 円 | AB35: =IF(SUM(AB20:AE34)=0,"",SUM(AB20:AE34)) -> 7050000 | AH35: =IF(SUM(AH20:AK34)=0,"",SUM(AH20:AK34)) ->  | AL35: １ヶ月平均被保険者数 | AN35: ｃ
V36: =IF(SUM(V20:Y34)=0,"",SUM(V20:Y34)) -> 7250000 | AN36: =IF(SUM(AN20:AQ34)=0,"",SUM(AN20:AQ34)) -> 7050000
V37: ｂ | Y37: 千円 | AM37: 人 | AN37: ｄ | AQ37: 千円
U38: 人 | V38: =IF(INDIRECT("V36")="","",ROUNDDOWN(V36/1000,0)) -> 7250 | AL38: =IF(SUM(AL20:AM31)=0,"",AVERAGE(AL20:AM31)) -> 2.833333333 | AN38: =IF(INDIRECT("AN36")="","",ROUNDDOWN(AN36/1000,0)) -> 7050
T39: =IF(SUM(T20:U31)=0,"",SUM(T20:U31)/12) -> 3 | V39: ｂ＋ｈ | Y39: 千円 | AL39: ｇ（ｄ－ｆ） | AW39: 千円
V40: =IF(AND(NOT(V38=0),E52=""),V38,IF(AND(NOT(E52=0),V38=""),E52,IF(ISERROR(V38+E52=0),"",SUM(V38,E52)))) -> 11995 | AM40: =AN38 -> 7050
A41: ⑫ 令和 ３ 年 度 確 定 | K41: 特別加入者 | O41: ⑫ 令和 ４ 年 度 概 算 | Z41: ⑭ 令和 ４ 年 度 賃金総額の見込額
A42: 承認された給付基礎日額 | E42: 保険料算定基礎額 | K42: 氏 名 | O42: 希望する給付基礎日額 | T42: 保険料算定基礎額 | Z42: 区 分 | AE42: 労災保険 | AI42: 雇用保険
D43: 円 | J43: 円 | K43: 会議所 太郎 | S43: 円 | Y43: 円 | Z43: イ | AA43: 常 時 使 用 | AH43: 人
A44: 8000 | E44: =IF(A44=0,"",A44*365) -> 2920000 | O44: 8000 | T44: =IF(O44=0,"",O44*365) -> 2920000 | AA44: 労 働 者 数 | AE44: 3
D45: 円 | J45: 円 | K45: 会議所 次郎 | S45: 円 | Y45: 円 | Z45: ロ | AA45: 雇 用 保 険 | AL45: 人
A46: 5000 | E46: =IF(A46=0,"",A46*365) -> 1825000 | O46: 5000 | T46: =IF(O46=0,"",O46*365) -> 1825000 | AA46: 被保険者数 | AI46: =AL38 -> 2.833333333
D47: 円 | J47: 円 | S47: 円 | Y47: 円 | Z47: ハ | AA47: 支払賃金総額 | AH47: 円 | AL47: 円
E48: =IF(A48=0,"",A48*365) ->  | T48: =IF(O48=0,"",O48*365) ->  | AA48: の 見 込 額 | AE48: =IF(SUM(V20:Y31)=0,"",SUM(V20:Y31)) -> 6650000 | AI48: =IF(SUM(AN20:AQ31)=0,"",SUM(AN20:AQ31)) -> 6450000
D49: 円 | J49: 円 | S49: 円 | Y49: 円 | Z49: ニ | AA49: 賞与等臨時支 | AH49: 円 | AL49: 円
E50: =IF(A50=0,"",A50*365) ->  | T50: =IF(O50=0,"",O50*365) ->  | AA50: 払賃金の見込額 | AE50: =IF(SUM(V32:Y34)=0,"",SUM(V32:Y34)) -> 600000 | AI50: =IF(SUM(AN32:AQ34)=0,"",SUM(AN32:AQ34)) -> 600000
E51: ｈ | J51: 千円 | K51: 合 計 | O51: ｉ＋ｊ | S51: 千円 | T51: ｉ | Y51: 千円 | Z51: ホ | AA51: 合 計 | AE51: ｊ（ハ＋ニ） | AH51: 千円 | AI51: ｋ（ハ＋ニ） | AL51: 千円
E52: =IF(SUM(E44:J50)=0,"",SUM(E44:J50)/1000) -> 4745 | O52: =IF(ISERROR(T52+AE52),"",T52+AE52) -> 11995 | T52: =IF(SUM(T44:Y50)=0,"",SUM(T44:Y50)/1000) -> 4745 | AE52: =IF(AND(NOT(AE48=0),AE50=0),ROUNDDOWN(AE48/1000,0),IF(AND(NOT(AE50=0),AE48=0),ROUNDDOWN(AE50/1000,0),IF(ISERROR(AE48+AE50=0),"",ROUNDDOWN((AE48+AE50)/1000,0)))) -> 7250 | AI52: =IF(AND(NOT(AI48=0),AI50=0),ROUNDDOWN(AI48/1000,0),IF(AND(NOT(AI50=0),AI48=0),ROUNDDOWN(AI50/1000,0),IF(ISERROR(AI48+AI50=0),"",ROUNDDOWN((AI48+AI50)/1000,0)))) -> 7050
